[Event "XXXV Magistral de Leon 2022"]
[Site "Leon"]
[Date "2022.07.09"]
[Round "1.1"]
[White "Gelfand, Boris"]
[Black "Esipenko, Andrey"]
[Result "0-1"]
[ECO "D38"]
[WhiteElo "2668"]
[BlackElo "2682"]
[Annotator "TA"]
[PlyCount "106"]
[EventDate "2022.07.08"]
[EventType "k.o."]
[EventCountry "ESP"]
[SourceTitle "playchess.com"]
[Source "ChessBase"]
[SourceQuality "1"]
[TimeControl "1200+10"]

{[%evp 19,106,13,11,9,16,10,27,0,0,12,0,9,24,0,0,-55,-86,-88,-85,-206,-195,-212,-200,-201,-214,-201,-218,-233,-237,-247,-141,-147,-143,-147,-114,-129,-125,-135,-128,-189,-73,-63,-72,-59,-71,-104,-106,-105,-108,-141,179,-197,-66,-80,0,-212,-205,-251,-263,-250,-258,-224,-192,-451,-450,-458,-443,-439,-433,-402,-393,-479,-455,-504,-497,-589,-601,-575,-560,-535,-461,-3497,-2403,-4878,-3090,-29954,-29950,-29963,-4610]} 1. d4 {[%emt 0:00:02]} Nf6 {[%emt 0:00:02]} 2. c4 {[%emt 0:00:01]} e6 {[%emt 0:00:02]} 3. Nf3 {[%emt 0:00:01]} d5 {[%emt 0:00:06]} 4. Nc3 {[%emt 0:00:01]} Bb4 {[%emt 0:00:25]} 5. e3 {[%emt 0:00:02]} O-O {[%emt 0:00:18]} 6. Be2 {[%emt 0:00:01]} b6 {[%emt 0:00:48]} 7. O-O {[%emt 0:00:05]} Bb7 {[%emt 0:00:54]} 8. a3 {[%emt 0:00:04]} Bd6 {[%emt 0:00:51]} 9. b4 {[%emt 0:00:07]} dxc4 {[%emt 0:00:44]} 10. Bxc4 {[%emt 0:00:14]} a5 {[%emt 0:00:14]} 11. b5 {[%emt 0:00:30] E52: Nimzo-Indian: Rubinstein: 4...0-0 5 Nf3 d5 6 Bd3 b6.} Nbd7 {[%emt 0:00:03][%cal Bb8d7,Bd7e5,Be5g6][%mdl 32]} 12. Bb2 {[%emt 0:00:08]} e5 {[%emt 0:00:56] [#]} 13. Be2 $146 {[%emt 0:01:03] White has an edge.} (13. a4 {looks sharper.} Re8 14. Ng5 Rf8 15. Re1) ({Predecessor:} 13. h3 Qe7 14. Re1 Rae8 15. Be2 exd4 16. Nxd4 Qe5 17. g3 Nc5 18. Bf3 Bxf3 19. Qxf3 Nd3 20. Re2 Qc5 21. Qc6 Qh5 22. Kg2 Ne5 {0-1 (22) Babula,V (2549)-Navara,D (2716) Pardubice 2014}) 13... Re8 {[%emt 0:00:32]} 14. dxe5 {[%emt 0:03:18]} Nxe5 {[%emt 0:00:18]} 15. Nd4 {[%emt 0:00:01]} Bc5 {[%emt 0:04:00]} 16. Nb3 {[%emt 0:04:18]} (16. Na4 $5 {[%cal Ra4c5]}) 16... Bd6 {[%emt 0:00:44]} 17. Qc2 {[%emt 0:01:38]} (17. Nd4 $11) 17... Qe7 $15 {[%emt 0:00:29]} 18. Qd1 {[%emt 0:06:43]} h5 {[%emt 0:04:17][%cal Bh7h5,Bh5h4][%mdl 32] ...Neg4 is the strong threat.} 19. h3 {[%emt 0:00:12] Against Neg4} (19. Nd4 $17) 19... Ng6 $19 {[%emt 0:00:37]} 20. Bf3 {[%emt 0:02:18] [#]} Qe5 $1 {[%emt 0:00:53][%csl Gd6][%cal Re5h2]} 21. g3 {[%emt 0:00:20]} Bxf3 {[%emt 0:00:15]} 22. Qxf3 {[%emt 0:00:00]} h4 {[%emt 0:00:03][%cal Rh4g3]} 23. Nd1 {[%emt 0:00:39]} Qxb5 {[%emt 0:00:15]} 24. Nd4 {[%emt 0:00:19]} Qd3 {[%emt 0:02:39]} (24... Qa6 $19 {aiming for ...Ne4.} 25. Nf5 Ne4) 25. Qf5 $17 {[%emt 0:00:32]} Re4 {[%emt 0:01:21][%cal Oe4d4]} 26. Nf3 {[%emt 0:00:31]} hxg3 {[%emt 0:00:27] Hoping for ...Qd5. 0x0.00222dad6c5bdp-1022s more active pieces.} 27. Bxf6 {[%emt 0:00:03]} gxf6 {[%emt 0:00:42] Dancing on a razor blade.} 28. fxg3 {[%emt 0:00:10]} Bxg3 {[%emt 0:00:18]} 29. Ra2 {[%emt 0:00:06]} (29. Qxf6 $17 {was worth a try.} Qc2 30. Nf2) 29... Rxe3 {[%emt 0:00:54]} (29... Nh4 $1 $19 {[%cal Rh4f5]} 30. Nxh4 Bxh4 31. Rg2+ Kf8) 30. Nxe3 {[%emt 0:00:08]} Qxe3+ {[%emt 0:00:01]} 31. Kh1 {[%emt 0:00:02] Strongly threatening Rg2.} Qf4 $1 {[%emt 0:00:16]} 32. Qd5 {[%emt 0:00:52]} Re8 {[%emt 0:00:09]} 33. Rg2 {[%emt 0:00:03] Black must now prevent Rfg1.} Re3 {[%emt 0:00:05]} 34. Nd2 {[%emt 0:00:25]} Qh6 {[%emt 0:00:25][%mdl 8192]} (34... Qh4 $1 $17 35. Rf3 Rxf3 36. Qxf3 Be5) 35. Qf5 {[%emt 0:00:12][%mdl 8192] Inhibits Nf4.} (35. Rxf6 $18 {is the narrow road to win.} Qg7 36. Qd8+ Qf8 37. Qd7) 35... Be5 {[%emt 0:00:36]} (35... Nh4 $19 36. Qg4+ (36. Qc8+ $2 Kg7 $19) 36... Qg5) 36. Nf3 $15 {[%emt 0:00:08]} Kg7 {[%emt 0:00:17]} (36... Qf4 $17 37. Qxf4 Bxf4) 37. Qd7 {[%emt 0:00:38] Black converts the advantage convincingly.} (37. h4 $1 $11 {and White has nothing to worry.}) 37... Bd6 $1 $19 {[%emt 0:00:11]} 38. h4 {[%emt 0:00:22]} Qh5 {[%emt 0:00:08] Against Qf5} ({Resist} 38... Bxa3 39. Rxg6+ $1 Qxg6 40. Rg1 $18) ({And not} 38... Rxa3 39. Rfg1 Kh8 40. Qe8+ (40. Qd8+ $2 Kh7 $19) 40... Kg7 41. Qd7 $11 (41. Rf1 $2 Rxf3 42. Rxf3 Qxh4+ 43. Kg1 Bc5+ 44. Rff2 Bxf2+ 45. Rxf2 Nf4 $19)) 39. Qg4 {[%emt 0:00:07]} Qxg4 {[%emt 0:00:07]} 40. Rxg4 {[%emt 0:00:01]} Kh6 {[%emt 0:00:12]} ({Stronger than} 40... Bxa3 41. h5 $17) 41. Nd4 $2 {[%emt 0:00:16]} (41. Ng1) 41... Kh5 {[%emt 0:00:03]} 42. Rg2 {[%emt 0:00:05]} Rh3+ 43. Kg1 Bc5 {[%emt 0:00:18]} 44. Rf5+ {[%emt 0:00:01]} Kh6 {[%emt 0:00:02]} 45. Rxc5 {[%emt 0:00:04]} bxc5 {[%emt 0:00:01][%mdl 4096] Endgame KRN-KRN} 46. Nf5+ {[%emt 0:00:02]} Kh7 {[%emt 0:00:08]} 47. Rc2 {[%emt 0:00:04]} Nxh4 {[%emt 0:00:12]} 48. Nxh4 {[%emt 0:00:09]} Rxh4 {[%emt 0:00:01]} 49. Rxc5 {[%emt 0:00:01] KR-KR} a4 {[%emt 0:00:26] Threatens to win with ...Rh3.} 50. Rxc7 {[%emt 0:00:01]} (50. Kg2 $142 Rd4 51. Rh5+ Kg6 52. Ra5) 50... Rh3 {[%emt 0:00:01]} 51. Rxf7+ {[%emt 0:00:07]} Kg6 {[%emt 0:00:01]} 52. Rb7 {[%emt 0:00:02]} Rxa3 {[%emt 0:00:03]} 53. Rb4 {[%emt 0:00:02]} Ra2 {[%emt 0:00:03] Weighted Error Value: White=0.80/Black=0.24 (precise)} (53... Ra1+ $142 54. Kg2 a3 55. Ra4 Kf5 56. Kh3 a2 57. Kg2 Ke6 58. Ra8 Kd7 59. Ra7+ Kc6 60. Ra8 Kb7 61. Ra5 f5 62. Ra4 Kb6 63. Ra8 Kc5 64. Rc8+ Kb6 65. Rc2 f4 66. Rf2 {[#]} Rg1+ $3 {[%mdl 512]} 67. Kxg1 a1=Q+ 68. Kg2 Qg7+ 69. Kf1 Qc3 70. Rg2 f3 71. Rh2 Kc5 72. Kf2 Qe5 73. Rh7 Qe2+ 74. Kg3 f2 75. Rh1 Kd4 76. Rh8 f1=Q 77. Rd8+ Kc3 78. Rc8+ Kd2 79. Rd8+ Ke1 80. Rd1+ Kxd1 81. Kh4 Qeg2 82. Kh5 Qfh1#) 0-1

[Event "XXXV Magistral de Leon 2022"]
[Site "Leon"]
[Date "2022.07.09"]
[Round "1.2"]
[White "Esipenko, Andrey"]
[Black "Gelfand, Boris"]
[Result "0-1"]
[ECO "B30"]
[WhiteElo "2682"]
[BlackElo "2668"]
[Annotator "TA"]
[PlyCount "58"]
[EventDate "2022.07.08"]
[EventType "k.o."]
[EventCountry "ESP"]
[SourceTitle "playchess.com"]
[Source "ChessBase"]
[SourceQuality "1"]
[TimeControl "1200+10"]

{[%evp 9,58,-42,-45,-33,0,-6,-9,0,-17,-28,-20,-40,-16,-59,-47,-88,-77,-100,-69,-72,-40,-115,-83,-97,-29,-89,-114,-114,-102,-134,-124,-113,-103,-178,-165,-315,-315,-503,-500,-481,-455,-742,-737,-715,-701,-685,-539,-29985,-29986,-29993,-29994]} 1. e4 {[%emt 0:00:03]} c5 {[%emt 0:00:01]} 2. Nf3 {[%emt 0:00:06]} Nc6 {[%emt 0:00:01]} 3. Bb5 {[%emt 0:00:07]} e6 {[%emt 0:00:01]} 4. O-O {[%emt 0:00:11]} Nge7 {[%emt 0:00:01]} 5. b4 {[%emt 0:00:05]} Nxb4 {[%emt 0:05:20]} 6. c3 {[%emt 0:00:03] [#] B30: Sicilian: 2...Nc6 3 Bb5, lines without ...g6.} a6 $146 {[%emt 0:00:01]} ({Predecessor:} 6... Nbc6 7. d4 cxd4 8. cxd4 a6 9. Bd3 d5 10. Nc3 Ng6 11. exd5 exd5 12. Ng5 Be7 {1-0 (52) Schurade,M (2335)-Paoli,E (2200) Olomouc 1986}) 7. cxb4 {[%emt 0:00:27] Hoping for Be2.} axb5 {[%emt 0:00:01]} 8. bxc5 {[%emt 0:00:02] The position is equal.} b6 {[%emt 0:00:29]} 9. d4 {[%emt 0:00:03]} bxc5 {[%emt 0:00:51]} 10. dxc5 {[%emt 0:00:02]} Nc6 {[%emt 0:01:23] White must now prevent ...Qf6.} 11. Be3 {[%emt 0:01:48]} Be7 {[%emt 0:00:25]} 12. e5 {[%emt 0:03:20] Against Bf6} f5 {[%emt 0:01:37]} 13. Nc3 {[%emt 0:07:03]} Ba6 {[%emt 0:00:25][%cal Bc8a6,Ba6b7,Bb7c6][%mdl 32]} 14. Re1 {[%emt 0:00:37]} O-O {[%emt 0:00:18]} 15. Ne2 {[%emt 0:04:27]} (15. a3 $15) 15... Qc7 {[%emt 0:01:52]} 16. Nf4 {[%emt 0:00:40]} Na5 {[%emt 0:02:47]} (16... Bb7 $17 {Threatens to win with ...g5.} 17. h3 Nb4) 17. h4 {[%emt 0:00:12] Against g5} (17. Nd4 $1 $11 {keeps the balance.}) 17... Nc4 $17 {[%emt 0:01:48]} 18. Bd4 {[%emt 0:00:02]} Bb7 {[%emt 0:01:33]} 19. Ng5 {[%emt 0:00:54]} Bxg5 {[%emt 0:01:07]} 20. hxg5 {[%emt 0:00:02]} Ra4 {[%emt 0:00:01] Black is more active.} 21. Qb3 {[%emt 0:01:12]} (21. g6 $17 h6 22. Qd3) 21... Bc6 {[%emt 0:00:52]} 22. Re2 {[%emt 0:01:32]} (22. g6 $142 h6 23. Qg3) 22... Ra3 $19 {[%emt 0:00:31]} 23. Qd1 {[%emt 0:00:02]} (23. Qc2 $142) 23... Qd8 {[%emt 0:00:05]} 24. g6 {[%emt 0:00:50]} Qh4 {[%emt 0:00:25]} 25. Qc1 {[%emt 0:00:09]} (25. Be3 $142 Nxe5 26. Qd6 (26. Bc1 $2 Nf3+ 27. gxf3 Bxf3 $19) 26... Nf3+ 27. gxf3 Bxf3 28. Ng2) 25... hxg6 {[%emt 0:00:17][%cal Bh7g6,Bg6g5][%mdl 32]} 26. Bb2 {[%emt 0:00:18] [#]} g5 $1 {[%emt 0:00:38]} 27. Ng6 {[%emt 0:00:04]} Qh5 {[%emt 0:00:48][%csl LRe2,LRg6] ( -> ...Bxg2)} 28. Ne7+ {[%emt 0:00:03]} Kf7 {[%emt 0:00:02]} 29. Nxc6 {[%emt 0:00:15] [#]} Rh8 $1 {[%emt 0:00:21] Weighted Error Value: White=0.78/Black=0.18 (very precise)} 0-1

[Event "XXXV Magistral de Leon 2022"]
[Site "Leon"]
[Date "2022.07.09"]
[Round "1.3"]
[White "Gelfand, Boris"]
[Black "Esipenko, Andrey"]
[Result "1/2-1/2"]
[ECO "D38"]
[WhiteElo "2668"]
[BlackElo "2682"]
[Annotator "TA"]
[PlyCount "63"]
[EventDate "2022.07.08"]
[EventType "k.o."]
[EventCountry "ESP"]
[SourceTitle "playchess.com"]
[Source "ChessBase"]
[SourceQuality "1"]
[TimeControl "1200+10"]

{[%evp 10,63,8,0,4,0,0,0,0,0,1,0,-11,0,0,0,0,-5,-9,-11,0,-24,0,0,1,0,7,0,5,0,19,21,24,24,34,32,27,0,59,59,61,59,58,22,22,12,16,11,15,4,4,4,4,4,5,5]} 1. d4 {[%emt 0:00:03]} Nf6 {[%emt 0:00:02]} 2. c4 {[%emt 0:00:01]} e6 {[%emt 0:00:03]} 3. Nf3 {[%emt 0:00:01]} d5 {[%emt 0:00:02]} 4. Nc3 {[%emt 0:00:01]} Bb4 {[%emt 0:00:12]} 5. e3 {[%emt 0:00:01]} O-O {[%emt 0:00:04]} 6. Be2 {[%emt 0:00:01]} b6 {[%emt 0:00:15] E50: Nimzo-Indian: Rubinstein: 4...0-0 5 Nf3.} 7. O-O {[%emt 0:00:03]} Bb7 {[%emt 0:00:15]} 8. a3 {[%emt 0:00:02]} Be7 {[%emt 0:00:27]} 9. b4 {[%emt 0:00:47]} dxc4 {[%emt 0:00:08]} 10. Bxc4 {[%emt 0:00:10]} c5 {[%emt 0:00:13]} 11. dxc5 {[%emt 0:02:39]} bxc5 {[%emt 0:00:01] [#]} 12. b5 $146 {[%emt 0:00:00]} ({Predecessor:} 12. Qxd8 Rxd8 13. b5 a6 14. Bb2 axb5 15. Bxb5 Nc6 16. Rfd1 Nd5 17. Nd2 Na5 18. Rab1 {½-½ (30) Ovsejevitsch,S (2600)-Bokros,A (2486) Zalakaros 2010}) 12... a6 {[%emt 0:00:01]} 13. Bb2 {[%emt 0:00:39]} axb5 {[%emt 0:00:09]} 14. Bxb5 {[%emt 0:00:10]} Qc7 {[%emt 0:00:29]} 15. Qe2 {[%emt 0:00:43]} Nc6 {[%emt 0:00:13]} (15... Ng4 {is more complex.} 16. g3 Nc6 17. Nd2 Rfd8) 16. Rfd1 {[%emt 0:00:55]} Rfd8 {[%emt 0:04:33]} 17. h3 {[%emt 0:00:27]} Na5 {[%emt 0:02:58]} 18. Rxd8+ {[%emt 0:01:15]} Rxd8 {[%emt 0:00:04]} 19. Rd1 {[%emt 0:00:01]} Nd5 {[%emt 0:01:06]} 20. Nxd5 {[%emt 0:02:32]} exd5 {[%emt 0:00:23]} 21. a4 {[%emt 0:00:20]} Nc4 {[%emt 0:05:12]} 22. Bxc4 {[%emt 0:03:02]} dxc4 {[%emt 0:00:02]} 23. Ne5 {[%emt 0:00:01][%cal Bf3e5,Be5c4,Bc4d2][%mdl 32]} Ba6 {[%emt 0:02:45]} (23... Rxd1+ $11 24. Qxd1 f6 25. Nxc4 Qc6) 24. Rxd8+ $14 {[%emt 0:00:55]} Bxd8 {[%emt 0:00:05]} 25. Nxc4 {[%emt 0:04:59] White is more active.} Qd7 {[%emt 0:00:44]} 26. Qd2 {[%emt 0:01:23]} (26. Qc2 {looks sharper.} h6 27. Nd2 Ba5 28. Nb3) 26... Qxd2 {[%emt 0:01:21] The position is equal.} 27. Nxd2 $11 {[%emt 0:00:01] KBB-KBN} Ba5 {[%emt 0:00:06]} 28. Ne4 {[%emt 0:00:02]} Bb4 {[%emt 0:01:15]} 29. Nc3 {[%emt 0:02:43]} Bc4 {[%emt 0:00:15]} 30. f3 {[%emt 0:00:20]} Bb3 {[%emt 0:00:08]} 31. Kf2 {[%emt 0:00:05]} Bxc3 {[%emt 0:00:05]} 32. Bxc3 {Weighted Error Value: White=0.05 (flawless) /Black=0.06 (flawless)} 1/2-1/2

[Event "XXXV Magistral de Leon 2022"]
[Site "Leon"]
[Date "2022.07.09"]
[Round "1.4"]
[White "Esipenko, Andrey"]
[Black "Gelfand, Boris"]
[Result "1/2-1/2"]
[ECO "B30"]
[WhiteElo "2682"]
[BlackElo "2668"]
[Annotator "TA"]
[PlyCount "92"]
[EventDate "2022.07.08"]
[EventType "k.o."]
[EventCountry "ESP"]
[SourceTitle "playchess.com"]
[Source "ChessBase"]
[SourceQuality "1"]
[TimeControl "1200+10"]

{[%evp 9,92,0,3,-2,42,23,23,32,33,39,41,18,52,48,58,-4,31,12,29,12,10,5,17,8,7,0,0,0,50,48,47,48,83,87,87,89,83,89,80,70,62,63,58,72,86,86,93,93,122,122,122,122,122,106,114,70,70,56,56,56,56,49,58,65,72,72,72,50,72,72,72,72,72,72,72,72,72,72,72,72,72,72,72,72,72]} 1. e4 {[%emt 0:00:03]} c5 {[%emt 0:00:00]} 2. Nf3 {[%emt 0:00:02]} Nc6 {[%emt 0:00:02]} 3. Bb5 {[%emt 0:00:04]} e6 {[%emt 0:00:00]} 4. Bxc6 {[%emt 0:00:04]} bxc6 {[%emt 0:00:01]} 5. d3 {[%emt 0:00:04]} Ne7 {[%emt 0:00:02]} 6. Nbd2 {[%emt 0:00:03] B30: Sicilian: 2...Nc6 3 Bb5, lines without ...g6.} f6 {[%emt 0:00:04]} 7. Nh4 {[%emt 0:02:27][%cal Oe4e5] [#]} d5 $146 {[%emt 0:00:01]} ({Predecessor:} 7... e5 8. O-O d6 9. f4 exf4 10. Rxf4 Be6 11. b3 Qd7 12. Bb2 O-O-O 13. Rf1 d5 {½-½ (34) Hakobyan,A (2615)-Smirin,I (2603) Saint Louis 2022}) 8. f4 {[%emt 0:01:11] White has an edge.} c4 {[%emt 0:00:03]} 9. dxc4 {[%emt 0:00:45]} Qb6 {[%emt 0:00:06]} 10. Qf3 {[%emt 0:02:23] Against Qe3+} Rg8 {[%emt 0:00:01]} 11. a4 {[%emt 0:04:55][%cal Ba2a4,Ba4a5][%mdl 32]} Ba6 {[%emt 0:01:14]} 12. Qc3 {[%emt 0:00:38]} ({White should try} 12. a5 $14 Qc5 13. b3) 12... Ng6 {[%emt 0:02:56]} 13. a5 {[%emt 0:01:04]} Qb4 {[%emt 0:02:00] [#] And now ...Qxc3 would win.} 14. Qxb4 {[%emt 0:01:10]} Bxb4 {[%emt 0:00:01]} 15. Nxg6 {[%emt 0:00:04]} hxg6 {[%emt 0:00:03]} 16. Ra4 $36 {[%emt 0:01:33][%mdl 2048] White has the initiative.} Bd6 {[%emt 0:01:10]} 17. exd5 {[%emt 0:00:51]} exd5 {[%emt 0:00:08]} 18. cxd5 {[%emt 0:00:04]} O-O-O {[%emt 0:04:11]} (18... cxd5 $11 19. Kf2 Kf7) 19. Ne4 $14 {[%emt 0:00:20]} ({Much worse is} 19. dxc6 Rge8+ 20. Kf2 Bc5+ 21. Kg3 Re3+ 22. Nf3 Re2 $17) 19... Rge8 {[%emt 0:00:06] Hoping for ...Bb5.} 20. Kf2 {[%emt 0:00:20]} ({Avoid the trap} 20. dxc6 $2 Bb5 21. Rd4 Bc5 22. Rxd8+ Kxd8 $19) 20... Bf8 {[%emt 0:02:08] aiming for ...Bb5. This bishop pair is nice.} 21. d6 $1 {[%emt 0:01:39]} ({Don't play} 21. dxc6 Bb5 22. Nc3 Bxa4 23. Nxa4 Rd5 $15) 21... Bxd6 {[%emt 0:03:03]} 22. Nxd6+ {[%emt 0:00:13]} Rxd6 {[%emt 0:00:02] [#]} 23. Be3 $1 {[%emt 0:00:07]} c5 {[%emt 0:01:20]} 24. Re1 {[%emt 0:00:28]} Bb5 {[%emt 0:01:31]} 25. Raa1 {[%emt 0:00:19]} a6 {[%emt 0:00:21]} 26. Rad1 {[%emt 0:00:20]} Rxd1 {[%emt 0:00:13]} 27. Rxd1 $16 {[%emt 0:00:01][%mdl 4096] Endgame KRB-KRB} c4 {[%emt 0:00:01]} 28. c3 {[%emt 0:02:14]} Rd8 {[%emt 0:00:58]} 29. Rxd8+ {[%emt 0:00:41]} Kxd8 {[%emt 0:00:01] KB-KB} 30. Bc5 {[%emt 0:00:02]} Ke8 {[%emt 0:00:06]} 31. g4 {[%emt 0:00:17]} Kf7 {[%emt 0:00:39]} 32. g5 {[%emt 0:00:07]} Ke6 {[%emt 0:00:30]} 33. h4 {[%emt 0:00:10]} Kf5 {[%emt 0:00:26]} 34. Kg3 {[%emt 0:00:12]} fxg5 {[%emt 0:00:23]} 35. fxg5 {[%emt 0:00:40]} Ke4 {[%emt 0:00:28]} 36. Bd4 {[%emt 0:00:11]} Ba4 {[%emt 0:00:01]} 37. Bxg7 {[%emt 0:00:14]} Bd1 {[%emt 0:00:01]} 38. Kf2 {[%emt 0:00:15]} Bh5 {[%emt 0:00:09]} 39. Bd4 {[%emt 0:00:12] White is better.} Kd3 {[%emt 0:00:10]} 40. Bc5 {[%emt 0:00:06]} Ke4 {[%emt 0:00:11]} 41. Kg3 {[%emt 0:00:13]} Bd1 {[%emt 0:00:09]} 42. Be7 {[%emt 0:00:02]} Bh5 {[%emt 0:00:12]} 43. Bf8 {[%emt 0:00:02]} Bd1 {[%emt 0:00:05]} 44. Bg7 {[%emt 0:00:02]} Bh5 {[%emt 0:00:09]} 45. Bh8 {[%emt 0:00:01]} Bd1 {[%emt 0:00:04]} 46. Bf6 {[%emt 0:00:02]} Bh5 {[%emt 0:00:11] Weighted Error Value: White=0.07 (flawless) /Black=0.09 (flawless)} 1/2-1/2

[Event "XXXV Magistral de Leon 2022"]
[Site "Leon"]
[Date "2022.07.09"]
[Round "1.5"]
[White "Esipenko, Andrey"]
[Black "Gelfand, Boris"]
[Result "0-1"]
[ECO "B30"]
[WhiteElo "2682"]
[BlackElo "2668"]
[Annotator "TA"]
[PlyCount "114"]
[EventDate "2022.07.08"]
[EventType "k.o."]
[EventCountry "ESP"]
[SourceTitle "playchess.com"]
[Source "ChessBase"]
[SourceQuality "1"]
[TimeControl "300+3"]

{[%evp 10,114,24,29,40,24,29,16,28,27,24,22,18,2,61,49,54,39,56,39,31,37,42,33,33,37,39,6,50,38,36,21,38,30,57,35,49,25,28,25,52,36,37,27,51,50,58,35,60,29,81,86,96,97,101,105,122,95,159,119,147,131,126,60,48,48,29,-279,-272,-258,-291,-272,-271,-258,-149,-234,-230,-218,-221,-166,-39,-322,-348,-349,-308,-356,-368,-481,-458,-678,-447,-647,-665,-632,-539,-659,-665,-6119,-6109,-6119,-6095,-6079,-6069,-5311,-5367,-5265,-5261]} 1. e4 {[%emt 0:02:04]} c5 {[%emt 0:02:02]} 2. Nf3 {[%emt 0:00:02]} Nc6 {[%emt 0:00:02]} 3. Bb5 {[%emt 0:00:05]} e6 {[%emt 0:00:02]} 4. O-O {[%emt 0:00:03]} Nge7 {[%emt 0:00:01]} 5. d4 {[%emt 0:00:02]} cxd4 {[%emt 0:00:02]} 6. Nxd4 {[%emt 0:00:02]} Ng6 {[%emt 0:00:03] B30: Sicilian: 2...Nc6 3 Bb5, lines without ...g6.} 7. Be2 {[%emt 0:00:03]} Be7 {[%emt 0:00:02]} 8. c4 {[%emt 0:00:03]} O-O {[%emt 0:00:03] The position is equal.} 9. Nc3 {[%emt 0:00:02]} b6 {[%emt 0:00:08]} 10. Nb3 {[%emt 0:00:04]} Bb7 {[%emt 0:00:04]} 11. Be3 {[%emt 0:00:02]} Qc7 {[%emt 0:00:05]} (11... Bf6 $11) 12. f4 $14 {[%emt 0:00:02]} Rad8 {[%emt 0:00:06] [#]} 13. g3 $146 {[%emt 0:00:03]} ({Predecessor:} 13. Rc1 Qb8 14. Qd2 d6 15. g3 Rfe8 16. Bf3 Bf6 17. Rfd1 Nf8 18. Bf2 Be7 19. Qe2 {0-1 (53) Leko,P (2663)-Gelfand,B (2676) chess24.com INT 2020}) 13... d6 {[%emt 0:00:13]} 14. Rc1 {[%emt 0:00:05]} Qb8 {[%emt 0:00:02]} 15. Bf3 {[%emt 0:00:15]} Rfe8 {[%emt 0:00:05]} 16. Qe2 {[%emt 0:00:04]} Bf6 {[%emt 0:00:19]} 17. Rfd1 {[%emt 0:00:07]} Nf8 {[%emt 0:00:09]} 18. Qd2 {[%emt 0:00:27]} Be7 {[%emt 0:00:12]} 19. Bg2 {[%emt 0:00:12]} Nd7 {[%emt 0:00:03]} 20. Nd4 {[%emt 0:00:54]} Nf6 {[%emt 0:00:10]} 21. Qe2 {[%emt 0:00:13]} Bf8 {[%emt 0:00:08]} 22. Nb3 {[%emt 0:00:10]} Qa8 {[%emt 0:00:16]} 23. g4 {[%emt 0:00:15][%cal Bg3g4,Bg4g5][%mdl 32]} Qb8 {[%emt 0:00:20]} 24. g5 {[%emt 0:00:02]} Nd7 {[%emt 0:00:02]} 25. h4 {[%emt 0:00:02][%cal Bh2h4,Bh4h5,Bh5h6][%mdl 32]} Nc5 {[%emt 0:00:04]} 26. h5 {[%emt 0:00:12][%cal Og5g6]} g6 {[%emt 0:00:08]} 27. h6 $36 {[%emt 0:00:04][%mdl 2048] Black is under pressure.} Be7 {[%emt 0:00:19]} 28. Qg4 {[%emt 0:00:12]} Rf8 {[%emt 0:00:09]} 29. Qg3 {[%emt 0:00:03][%cal Of4f5]} Rfe8 {[%emt 0:00:14]} (29... f6 $11 {remains equal.}) 30. Nd4 $16 {[%emt 0:00:10]} Nxd4 {[%emt 0:00:25]} 31. Bxd4 {[%emt 0:00:02][%cal Of4f5]} e5 {[%emt 0:00:06]} 32. Be3 {[%emt 0:00:16]} exf4 {[%emt 0:00:09]} 33. Bxf4 {[%emt 0:00:02]} Ne6 {[%emt 0:00:02]} (33... Rd7 $142) 34. Be3 {[%emt 0:00:01]} Rc8 {[%emt 0:00:10]} 35. Nd5 {[%emt 0:00:02]} Bxd5 {[%emt 0:00:02]} 36. cxd5 {[%emt 0:00:02]} ({Better is} 36. exd5 $16 Nc5 37. Bd4) 36... Rxc1 $14 {[%emt 0:00:05]} 37. Rxc1 {[%emt 0:00:03]} Nc5 {[%emt 0:00:02][%cal Be6c5,Bc5d3,Bd3c1][%mdl 32]} 38. Qf4 $2 {[%emt 0:00:13][%mdl 8192]} (38. Bf4 $11 {and White stays safe.}) 38... Nd3 $1 $19 {[%emt 0:00:03][%csl LRb2,LRc1,LRf4]} 39. Qf1 {[%emt 0:00:06]} Nxc1 {[%emt 0:00:03]} 40. Qxc1 {[%emt 0:00:02]} Qc8 {[%emt 0:00:03] Hoping for ...Qxc1+.} 41. Qd1 {[%emt 0:00:03]} Bf8 {[%emt 0:00:10]} (41... Qc4 $19 {aiming for ...Rc8.} 42. Kh2 Rc8) 42. Bd4 {[%emt 0:00:04]} (42. Kh2 $17 {might work better.}) 42... Qd8 {[%emt 0:00:04]} 43. Qd2 {[%emt 0:00:04]} Be7 {[%emt 0:00:03]} 44. Be3 {[%emt 0:00:01] [#]} f6 {[%emt 0:00:05]} (44... Qd7 $1 $19 {Strongly threatening ...f6.} 45. Qd4 Bf8) 45. Bh3 $2 {[%emt 0:00:03][%mdl 8192]} (45. Qd4 $15) 45... fxg5 {[%emt 0:00:03]} 46. Be6+ Kh8 47. Bd4+ {[%emt 0:00:13]} Bf6 {[%emt 0:00:03]} 48. Qc3 {[%emt 0:00:02]} Rf8 {[%emt 0:00:02] Black is clearly winning.} 49. e5 {[%emt 0:00:04]} (49. Kg2 $142 Bxd4 50. Qxd4+ Qf6 51. Qc3) 49... dxe5 {[%emt 0:00:03]} 50. Bxe5 {[%emt 0:00:03]} (50. Bf2 $142 e4 51. Qc4) 50... Bxe5 {[%emt 0:00:04]} 51. Qxe5+ {[%emt 0:00:02]} Qf6 {[%emt 0:00:01]} 52. Qxf6+ {[%emt 0:00:04]} Rxf6 {[%emt 0:00:02]} 53. Kg2 {[%emt 0:00:02] [#]} Rxe6 $1 {[%emt 0:00:04]} 54. dxe6 {[%emt 0:00:02] KP-KP} Kg8 {[%emt 0:00:01]} 55. Kf3 {[%emt 0:00:05]} Kf8 {[%emt 0:00:02]} 56. Kg4 Ke7 57. Kxg5 Kxe6 {Weighted Error Value: White=0.63/Black=0.21 (precise)} 0-1